Cogmind - Beta 14 @@@ ROGUE MODE // 2024.09.27 @ 22:17:29 Player: saltine Result: Destroyed by DAS Turret with DAS Cannon Performance ------------- Evolutions (1) 500 Regions Visited (4) 800 Robots Destroyed (45) 225 Value Destroyed (1284) 1284 Prototype IDs (27) 540 Alien Tech Used (0) 0 Bonus (300) 300 TOTAL SCORE: 3649 Bonus ------- Aligned with FarCom 300 Cogmind --------- Core Integrity 0/400 Matter 16/300 Energy 79/100 System Corruption 6% Temperature Cool (0) Movement Core (50) Location -9/Exiles Parts ------- > --- POWER (1) -------- (None) > --- PROPULSION (2) --- (None) > --- UTILITY (3) ------ (None) > --- WEAPON (3) ------- (None) > --- INVENTORY (5) ---- Ion Engine Large Storage Unit Improved Light Armor Plating Improved Assault Rifle Advanced EMP Blaster Peak State ------------ > --- POWER ------------ Light Nuclear Core > --- PROPULSION ------- Light Treads Light Treads > --- UTILITY ---------- Disposable Heat Sink Large Storage Unit Hardened Light Armor Plating > --- WEAPON ----------- YOLO Cannon > --- INVENTORY -------- Ion Engine Light Treads Light Treads Light Treads Hardened Light Armor Plating Improved Light Armor Plating Improved Light Armor Plating Improved Light Armor Plating Improved Light Armor Plating Improved Assault Rifle Improved Assault Rifle Improved Assault Rifle Improved Assault Rifle Improved Assault Rifle Advanced EMP Blaster [Rating: 33] Favorites ----------- Power Light Nuclear Core Engine Ion Engine Power Core Light Nuclear Core Propulsion Light Treads Treads Light Treads Leg Aluminum Leg Wheel Wheel Utility Large Storage Unit Device Disposable Heat Sink Storage Large Storage Unit Processor Targeting Computer Protection Hardened Light Armor Plating Weapon Improved Assault Rifle Energy Gun Spread Laser Energy Cannon YOLO Cannon Ballistic Gun Improved Assault Rifle Ballistic Cannon Improved Light Cannon Launcher Advanced EMP Blaster Special Weapon Mining Laser Build | -11 -10 -9 -9 -9 ------- Run | Yrd Mat Mat Min Exi Slots Evolved 2 | . . 2 . . Power . | . . . . . Propulsion . | . . . . . Utility 1 | . . 1 . . Weapon 1 | . . 1 . . Parts Attached 54 | 3 15 16 1 19 Power 4 | . 1 2 1 . Engine 2 | . 1 1 . . Core 2 | . . 1 1 . Reactor . | . . . . . Propulsion 12 | 2 1 4 . 5 Treads 10 | 2 . 3 . 5 Leg . | . . . . . Wheel 2 | . 1 1 . . Hover . | . . . . . Flight . | . . . . . Utility 16 | 1 4 4 . 7 Device 4 | 1 . 2 . 1 Storage 5 | . 3 . . 2 Processor 1 | . 1 . . . Hackware . | . . . . . Protection 6 | . . 2 . 4 Artifact . | . . . . . Weapon 22 | . 9 6 . 7 Energy Gun 4 | . 2 2 . . Energy Cannon 1 | . . . . 1 Ballistic Gun 11 | . 3 3 . 5 Ballistic Cannon 1 | . 1 . . . Launcher 2 | . . 1 . 1 Special Weapon 3 | . 3 . . . Impact Weapon . | . . . . . Slashing Weapon . | . . . . . Piercing Weapon . | . . . . . Special Melee Weapon . | . . . . . Unidentified Prototypes 2 | . 1 1 . . Corrupted Parts 1 | . . . . 1 System Corruption 4 | . . . . 4 Parts Lost 12 | . 5 1 . 6 Power 3 | . 1 1 . 1 Propulsion 6 | . 2 . . 4 Utility 1 | . 1 . . . Weapon 2 | . 1 . . 1 Highest Loss Streak 6 | . 4 1 . 6 To Critical Strikes 6 | . . . . 6 Average Slot Usage (%) 88 | . 90 98 100 77 Engine 4 | . 12 7 . . Core 6 | . . 3 10 10 Treads 16 | . 12 10 22 21 Wheel 4 | . 8 10 . . Device 9 | . 4 12 11 9 Storage 11 | . 14 11 11 10 Processor 2 | . 8 1 . . Protection 8 | . . 7 11 12 Energy Gun 9 | . 11 19 11 . Ballistic Gun 14 | . 15 13 22 11 Peak Build Rating 33 | 7 11 21 21 33 Average Rating 15 | 6 8 18 20 16 On Entrance 12 | 6 7 9 19 21 Naked Turns 12 | . . . . 12 Heaviest Build 45 | 15 28 40 40 45 Greatest Support 40 | 40 40 40 40 40 Greatest Overweight (x) 3 | . 2 3 . 1 Average Overweight (x) . | . 1 2 . . Largest Inventory Capacity 15 | 8 15 15 15 15 Average Capacity 14 | 8 12 15 15 14 Most Carried 15 | 6 15 15 15 15 Average Carried 13 | 4 11 14 14 13 Final Capacity 15 | 8 15 15 15 5 Final Carried 15 | 6 15 15 15 5 Class Distribution -------------------- 49% | Mutant 44% | Tank 6% | Gunner Dominant Class ---------------- Mutant | -10/Materials Tank | -9/Materials Tank | -9/Mines Mutant | -9/Exiles Resources | -11 -10 -9 -9 -9 ----------- Run | Yrd Mat Mat Min Exi Matter Collected 1155 | 248 431 255 49 172 Remotely . | . . . . . Salvage Created 1593 | 98 500 871 101 23 Parts 86 | 11 22 47 6 . Haulers Intercepted 6 | . 2 4 . . Recyclers Shooed 1 | . . 1 . . Parts Field Recycled . | . . . . . Retrieved Matter . | . . . . . Parts Self-Destructed . | . . . . . Prevented . | . . . . . Kills | -11 -10 -9 -9 -9 ------- Run | Yrd Mat Mat Min Exi Combat Hostiles Destroyed 35 | . 12 19 2 2 Guns 33 | . 10 19 2 2 Cannons 2 | . 2 . . . Classes Destroyed 8 | 1 4 2 . 1 Worker 1 | . . 1 . . Tunneler 4 | 4 . . . . Hauler 6 | . 2 4 . . Operator 1 | . 1 . . . Swarmer 3 | . 3 . . . Grunt 24 | . 9 13 2 . Sentry 6 | . . 6 . . Assembled 2 | . . . . 2 Best Kill Streak 8 | 3 8 4 2 2 Combat Bots Only 7 | . 7 4 2 2 Max Kills in Single Turn 1 | 1 1 1 1 1 Gunslinging . | . . . . . Exploded . | . . . . . Melee . | . . . . . Uniques/NPCs Destroyed . | . . . . . Combat | -11 -10 -9 -9 -9 -------- Run | Yrd Mat Mat Min Exi Hostile Shots Fired 209 | . 80 38 2 89 Missed 41 | . 14 16 . 11 Damage Taken 2861 | . 817 390 32 1622 Core 620 | . 175 12 . 433 Absorbed by Shields . | . . . . . Core Remaining (%) 65 | 100 30 . . . Volleys Fired 125 | 6 46 36 2 35 Largest 3 | 2 2 3 3 3 Hottest 153 | 70 100 153 111 69 Shots Fired 305 | 12 87 109 6 91 Gun 294 | 12 78 109 6 89 Cannon 6 | . 6 . . . Launcher 2 | . . . . 2 Special 3 | . 3 . . . Kinetic 190 | 6 51 40 4 89 Thermal 113 | 6 36 69 2 . Explosive . | . . . . . Electromagnetic 2 | . . . . 2 Robot Hit Streak 15 | 4 14 15 10 6 Robot Miss Streak 4 | 3 4 4 4 3 Penetration Max . | . . . . . Secondary Targets 2 | . 2 . . . Max Gunslinging Chain 1 | . 1 . . . Shots Hit Robots 202 | 6 52 81 6 57 Core Hits 148 | 4 30 103 6 5 Critical Kills . | . . . . . Critical Parts Destroyed 1 | . 1 . . . Critical Strikes 4 | . 4 . . . Burn 3 | . 3 . . . Destroy 1 | . 1 . . . Melee Attacks . | . . . . . Impact . | . . . . . Slashing . | . . . . . Piercing . | . . . . . Sneak Attacks . | . . . . . Combat Hostiles . | . . . . . Follow-up Attacks . | . . . . . Damage Inflicted 3063 | 77 762 1269 77 878 Guns 2843 | 77 640 1199 77 850 Cannons 102 | . 102 . . . Explosions 88 | . . 60 . 28 Melee . | . . . . . Ramming 30 | . 20 10 . . Kinetic 1672 | 39 441 280 62 850 Thermal 1273 | 38 301 919 15 . Explosive 60 | . . 60 . . Electromagnetic 28 | . . . . 28 Impact . | . . . . . Slashing . | . . . . . Piercing . | . . . . . Highest Corruption 6 | . . 1 1 6 Average Corruption 1 | . . 1 1 1 Corruption Purged . | . . . . . Corruption Blocked . | . . . . . Effects 30 | . . 7 5 18 Message Errors 9 | . . 2 1 6 Matter Fused 4 | . . . 1 3 Heat Flow Errors 5 | . . 2 2 1 Energy Discharges 4 | . . 2 . 2 Parts Rejected 2 | . . . . 2 Data Loss (minor) 4 | . . . 1 3 Misfires 1 | . . 1 . . Weapon Failures 1 | . . . . 1 Overload Shots . | . . . . . Overflow Damage . | . . . . . Projectiles . | . . . . . Explosions . | . . . . . Melee . | . . . . . Knockbacks 2 | . 2 . . . Impact 1 | . 1 . . . Kinetic 1 | . 1 . . . Secondary . | . . . . . Self-Inflicted Damage 101 | . 10 73 . 18 Shots 2 | . . 1 . 1 Rammed 3 | . 2 1 . . Targets Rammed 3 | . 2 1 . . Kicked . | . . . . . Crushed . | . . . . . Highest Temperature 297 | 27 177 198 197 297 Average Temperature 92 | 11 73 86 83 139 Received Heat Transfer 627 | . 414 177 36 . Effects 1 | . . . . 1 Energy Bleed 1 | . . . . 1 Siege Activations . | . . . . . Robots Corrupted . | . . . . . Combat Hostiles . | . . . . . Parts Fried . | . . . . . Impact Corruptions . | . . . . . Robots Melted . | . . . . . Combat Hostiles . | . . . . . Parts Melted 4 | 1 3 . . . Heat Transferred 2276 | 111 1005 1140 20 . Parts Sabotaged . | . . . . . Parts Stolen . | . . . . . Parts Stripped . | . . . . . Power Chain Reactions . | . . . . . Alert | -11 -10 -9 -9 -9 ------- Run | Yrd Mat Mat Min Exi Peak Influence 397 | 20 249 397 161 . Initial 111 | . 13 6 111 . Average 164 | 9 125 267 84 . Maximum Alert Level 1 | . 1 1 . . Low Security (%) 63 | 100 89 10 100 . Level 1 36 | . 10 89 . . Level 2 . | . . . . . Level 3 . | . . . . . Level 4 . | . . . . . Level 5 . | . . . . . High Security . | . . . . . Max Security . | . . . . . Squads Dispatched 3 | . 1 2 . . Investigation . | . . . . . Extermination . | . . . . . Reinforcement 3 | . 1 2 . . Assault . | . . . . . Garrison . | . . . . . Intercept . | . . . . . Searches Triggered . | . . . . . Construction Impeded . | . . . . . Haulers Reinforced . | . . . . . Active Scanning Responses . | . . . . . Cargo Convoy Interrupts . | . . . . . Stealth | -11 -10 -9 -9 -9 --------- Run | Yrd Mat Mat Min Exi Distress Signals 4 | . . 4 . . Communications Jammed . | . . . . . Distress Signals . | . . . . . Times Spotted 55 | . 19 30 1 5 Peak Tracking Total 9 | . 6 5 . 9 Tactical Retreats 2 | . . 2 . . Traps | -11 -10 -9 -9 -9 ------- Run | Yrd Mat Mat Min Exi Traps Triggered 3 | . 1 2 . . Indirectly . | . . . . . Trap Hack Attempts . | . . . . . Triggered . | . . . . . Disarmed . | . . . . . Reprogrammed . | . . . . . Reused . | . . . . . Traps Extracted . | . . . . . Installed . | . . . . . Triggered . | . . . . . Machines | -11 -10 -9 -9 -9 ---------- Run | Yrd Mat Mat Min Exi Machines Disabled 8 | . . 2 . 6 Max in Single Turn 3 | . . 2 . 3 Machines Repaired . | . . . . . Machines Dismantled . | . . . . . Machines Sabotaged . | . . . . . Overloaded Fab Kills . | . . . . . Hacking | -11 -10 -9 -9 -9 --------- Run | Yrd Mat Mat Min Exi Machines Accessed 14 | . 9 3 1 1 Terminals 10 | . 7 3 . . Fabricators . | . . . . . Repair Stations . | . . . . . Recycling Units 2 | . 2 . . . Scanalyzers . | . . . . . Garrison Access . | . . . . . Total Hacks 37 | . 26 9 1 1 Successful 21 | . 15 4 1 1 Failed 16 | . 11 5 . . Catastrophic 5 | . 4 1 . . Database Lockouts . | . . . . . Manual 13 | . 11 1 . 1 Terminals 32 | . 23 9 . . Fabricators . | . . . . . Repair Stations . | . . . . . Recycling Units 3 | . 3 . . . Scanalyzers . | . . . . . Garrison Access . | . . . . . Terminal Hacks 14 | . 8 4 1 1 Robot Analysis 2 | . 2 . . . Prototype ID Bank 1 | . 1 . . . Open Door 1 | . . . 1 . Terminal Index 1 | . 1 . . . Locate Traps 2 | . . 2 . . Hauler Manifests 2 | . 1 1 . . Registered Components 2 | . 1 1 . . Registered Prototypes 1 | . 1 . . . Zone Layout 1 | . 1 . . . Derelict Proto ID Bank 1 | . . . . 1 Fabricator Hacks . | . . . . . Repair Station Hacks . | . . . . . Recycling Unit Hacks 2 | . 2 . . . Retrieve Components 2 | . 2 . . . Scanalyzer . | . . . . . Garrison Access Hacks . | . . . . . Unauthorized Hacks 5 | . 5 . . . Terminals 5 | . 5 . . . Skim 5 | . 5 . . . Fabricators . | . . . . . Repair Stations . | . . . . . Recycling Units . | . . . . . Scanalyzers . | . . . . . Garrison Access . | . . . . . Data Cores Recovered . | . . . . . Used . | . . . . . Hacking Detections 11 | . 8 3 . . Full Trace Events 1 | . . 1 . . Feedback Events . | . . . . . Feedback Blocked . | . . . . . Robot Schematics Acquired . | . . . . . Robots Built . | . . . . . Authchips . | . . . . . Time . | . . . . . Total Robot Build Rating . | . . . . . Part Schematics Acquired . | . . . . . Parts Built . | . . . . . Authchips . | . . . . . Time . | . . . . . Total Part Build Rating . | . . . . . Parts Repaired . | . . . . . Time . | . . . . . Parts Recycled . | . . . . . Recycled Matter . | . . . . . Retrieved Matter . | . . . . . Retrieved Components 19 | . 19 . . . Parts Scanalyzed . | . . . . . Part Schematics Acquired . | . . . . . Parts Damaged . | . . . . . Bothacking | -11 -10 -9 -9 -9 ------------ Run | Yrd Mat Mat Min Exi Used RIF Installer . | . . . . . Robots Hacked . | . . . . . Non-combat . | . . . . . Combat . | . . . . . Robot Hacks Applied . | . . . . . Relay Couplers Released . | . . . . . Fabnet Peak Effective % . | . . . . . Robots Rewired . | . . . . . Allies Hacked . | . . . . . Hacks Repelled . | . . . . . Allies | -11 -10 -9 -9 -9 -------- Run | Yrd Mat Mat Min Exi Total Allies . | . . . . . Largest Group . | . . . . . Highest-Rated Group . | . . . . . Highest-Rated Ally . | . . . . . Total Orders . | . . . . . Ally Attacks . | . . . . . Total Damage . | . . . . . Kills . | . . . . . Allies Corrupted . | . . . . . Allies Melted . | . . . . . Intel | -11 -10 -9 -9 -9 ------- Run | Yrd Mat Mat Min Exi Robot Analysis Total 2 | . 2 . . . Derelict Logs Recovered 1 | . . . 1 . Drone Launches . | . . . . . Drone Recoveries . | . . . . . Exploration | -11 -10 -9 -9 -9 ------------- Run | Yrd Mat Mat Min Exi Turns Passed 5269 | 114 1221 1213 761 1960 Spaces Moved 2969 | 56 607 720 469 1117 Core 23 | . . . . 23 Treads 1831 | 56 199 13 469 1094 Legs . | . . . . . Wheels 1115 | . 408 707 . . Hover . | . . . . . Flight . | . . . . . Fastest Speed 50 | 160 80 110 160 50 Average Speed 145 | 160 124 129 160 159 Slowest Speed 240 | 160 160 160 160 240 Overloaded Moves . | . . . . . Propulsion Burnouts . | . . . . . Robots Hopped . | . . . . . Cave-ins Triggered . | . . . . . Exploration Rate (%) 64 | 4 92 60 76 92 Regions Visited 4 Branch Regions 2 Pre-discovered Areas 3 | . 2 . 1 . Known Exits Taken 1 | . . 1 . . Unknown Exits Taken 3 | 1 1 . 1 . Scrap Searched 1 | . . . 1 . Spaces Dug 3 | . 3 . . . Terrain Destroyed 23 | . 3 20 . . Melee . | . . . . . Projectile 3 | . 3 . . . AOE 20 | . . 20 . . Terrain Rammed . | . . . . . Walls Destroyed . | . . . . . Machines Disabled . | . . . . . Actions | -11 -10 -9 -9 -9 --------- Run | Yrd Mat Mat Min Exi Total 3673 | 68 975 927 476 1227 Wait 405 | . 280 115 . 10 Move 2964 | 55 606 718 468 1117 Hop . | . . . . . Pick Up 56 | 2 17 17 2 18 Fast Attach 27 | 1 3 11 1 11 Attach 10 | . 2 2 . 6 Detach 2 | . . 1 . 1 Swap 17 | 2 10 3 . 2 Drop 64 | 2 9 23 3 27 Fire 125 | 6 46 36 2 35 Melee . | . . . . . Ram 3 | . 2 1 . . Kick . | . . . . . Crush . | . . . . . Escape Stasis . | . . . . . Rewire . | . . . . . Trap . | . . . . . Miscellaneous . | . . . . . Route ------- -11/Scrapyard -10/Materials (discovered 6 exits: *Mat x3 / [*Min x2] / Sub) -9/Materials (discovered 5 exits: *Mat x3 / *Min x2) -9/Mines (discovered 3 exits: *Mat x2 / *Exi) -9/Exiles (discovered 2 exits: [*Min x2]) History --------- Turn | Location | Event 5 | -11/Scrapyard | Discovered new exit (range 1) 115 | -11/Scrapyard | Entered Materials 305 | -10/Materials | Build established: Mutant 449 | -10/Materials | Discovered new exit (range 8) 554 | -10/Materials | Core integrity fell below 50% 573 | -10/Materials | Discovered new exit (range 15) 580 | -10/Materials | Lost 4 parts (1p1n1u1w) 582 | -10/Materials | Destroyed 7 combat bots 583 | -10/Materials | Discovered new exit (range 15) 690 | -10/Materials | Discovered new exit (range 14) 810 | -10/Materials | Discovered new exit (range 13) 1038 | -10/Materials | Learned location of Mines (-9) 1097 | -10/Materials | Learned location of Mines (-8) 1145 | -10/Materials | Learned 4 Subcaves zone layouts 1183 | -10/Materials | Learned location of 2 exits from Subcaves 1209 | -10/Materials | Identified exit to Subcaves 1209 | -10/Materials | Learned location of 2 exits from Materials 1243 | -10/Materials | Learned 2 Storage zone layouts 1287 | -10/Materials | Learned 2 Mines zone layouts 1336 | -10/Materials | Entered another Materials area 1336 | -9/Materials | Evolved 2 slots: Utility x1, Weapon x1 1337 | -9/Materials | Identified exit to Mines 1337 | -9/Materials | Identified exit to Materials 1501 | -9/Materials | Discovered exit to Mines (range 7) 1626 | -9/Materials | Discovered exit to Materials (range 13) 1659 | -9/Materials | Build established: Gunner 1981 | -9/Materials | Build established: Tank 2148 | -9/Materials | Discovered exit to Materials (range 10) 2549 | -9/Materials | Entered Mines 2602 | -9/Mines | Met a Derelict who couldn't figure out how to use a Trap Extractor 2744 | -9/Mines | Discovered exit to Materials (range 5) 2849 | -9/Mines | Found a hidden stash of uninstalled traps 3231 | -9/Mines | Found a damaged Exp. Sensor Array with a note attached 3292 | -9/Mines | Assembled infested the area 3303 | -9/Mines | Deemed a non-threat by the Exiles lab entrance 3303 | -9/Mines | Discovered new exit (range 5) 3310 | -9/Mines | Entered Exiles 3331 | -9/Exiles | Discovered new exit (range 15) 3354 | -9/Exiles | Met 8R-AWN 3376 | -9/Exiles | Met EX-HEX 3462 | -9/Exiles | Met EX-BIN 3490 | -9/Exiles | Aligned with FarCom system 3491 | -9/Exiles | Given EX-Vault access code 3530 | -9/Exiles | Opened EX-Vault 3541 | -9/Exiles | Found YOLO Cannon 3548 | -9/Exiles | Found Supersonic Drone Bay 3588 | -9/Exiles | Warned to stay clear of 0b10 Research branches 3644 | -9/Exiles | Met EX-DEC 3706 | -9/Exiles | Build established: Mutant 3733 | -9/Exiles | Visited The Gauntlet 4057 | -9/Exiles | Discovered new exit (range 14) 4894 | -9/Exiles | Build established: Tank 5039 | -9/Exiles | Attacked by the Exiles 5258 | -9/Exiles | Released all parts (7) 5264 | -9/Exiles | Core integrity fell below 50% 5267 | -9/Exiles | Core integrity fell below 20% 5270 | -9/Exiles | Destroyed by DAS Turret with DAS Cannon Last Messages --------------- 05241_ Critical hit (Destroy). 05241_ Imp. Assault Rifle destroyed. 05241_ HV Slug penetrates Earth. 05245_ Penetrated by HV Slug. 05245_ Critical hit (Destroy). 05246_ Acquired 9 matter. 05249_ Acquired 8 matter. 05251_ Penetrated by HV Slug. 05258_ Released Lgt. Treads. 05258_ Released Imp. Assault Rifle. 05258_ Released Hrd. Light Armor Plating. 05258_ Released Lrg. Storage Unit. 05258_ Released Imp. Assault Rifle. 05258_ Released Imp. Light Armor Plating. 05258_ Released Imp. Assault Rifle. 05258_ Dropped Corrupted Imp. Assault Rifle. 05259_ Acquired Lrg. Storage Unit. 05259_ Penetrated by HV Slug. 05264_ System corrupted: Energy discharge (-37). 05269_ Acquired 9 matter. Map ----- +----------------------------------------------------+ | ?????????????????????"""" ## #??????????????? | | ????????????????????#""X" #??????????????? | | ????????????????????#" #??????????????? | | ????????????????????#" ## #??????????????? | | ????????????????????#""""""?# #?#########????? | | ?????????????????????#"###??# #?#"""""""#????? | | ????????????????????????????# #?#"""""""#????? | | ????????????????????????????# #?#"""""""#????? | | ???????????????????????????## ###"" """"#????? | | ##?????????????????????????#" """"#????? | | "#?????????????????????????#" """#????? | | "#?????????????????????????#" """#????? | | "#?????????????????????????#" """#????? | | "#??????????########???????#" """#????? | | "#??????????# """#???????#" """##???? | | "#??????????#"" """#???????## """""???? | | ????????????#"" #????????# """##???? | | ##??????????#"" #????????#" "X" """""???? | | "#??????????#"" "#????????#" """ # ???? | | ###????????# ""#????????#" """""""""#????? | | #####????#"" ""#???????##" ###########????? | | [[[ #????### ###??????##"" #??????????????? | | [[######???### ###?######"" #??????????????? | | !!= [ ""#####X# #"###""""""" ##?????????????? | | !!! % """""" " "" ##???########## | | ! % "" """ @%" #####""""""""" | | % " " " """ """ | | ## "" " | | ?### " " | | ???## " | | ????## " | | ?????##" | | ??????#""" """""" | | ?????##" ######""" | | ?????#"" ""##????#####""" | | ?????#""" """##?????????##""" | | ????#""" """##???????????#"""" | | ????#""" ""#???????????##"" | | ????#"" ########??####"""" | | ????#""" ## ####""" | | ????#"" """" | | ????##"" | | ?????#"""" | | ?????## " | | ??????#" " "" """ | | ??????#"""" ""## ##""" " " ""#" | | ??????#"" ""#### ######""" """##""" | | ??????#" """"##??# #????###""""###### | | ??????#""" """#??## ####???######????? | | ??????## ""##??#! "!#?????????????? | +----------------------------------------------------+ Best States ------------- Heat Dissipation 38 Coolant Potential 50 Energy Generation 14 Energy Capacity 250 Matter Stores 300 Matter Capacity 300 Sight Range 16 Terrain Scan Density 10 Armor Coverage 300 Evasion (%) 50 Targeting Accuracy 5 Recoil Reduction 2 Item Schematics ----------------- None Robot Schematics ------------------ None Fabricated ------------ Nothing Alien Tech Used ----------------- None Achievements -------------- None Challenges ------------ None Game ------ Seed ActiveNeutrinoAutogun Manual? 0 Play Time 00:42:59 Cumulative 220.9 hours Start 2024.09.27 @ 18:08:54 End 2024.09.27 @ 22:17:29 Sessions 9 Manual Loads 0 Difficulty Rogue Special Mode None Game No. 144 Rogue 144 Adventurer 0 Explorer 0 Win Type - Total 9 Types 3/0/4/1/0/0/1/0/0 Lore% 74 Gallery% 74 Achievement% 66 Wizard Run 0 Options --------- Layout 0 ASCII 0 Keyboard 0 Movement Arrows Keybinds 0 Fullscreen 2 Font 18/SmallcapsGlow Map View 76x50 Zoom Use 0% Tactical HUD 1 Map Filters NONE Filters NONE Steam 1 RUN: 8923851b-f914-4283-a5c1-a3a22c0731b7